bitfinex/quotes_SOLUSD_20250429
["timestamp","ask_amount","ask_price","bid_price","bid_amount"]
[1745953230630,36.55541116,150.08,150.05,82.5]
[1745953232625,29.89207481,150.08,150.06,0.56864628]
[1745953232921,36.58488523,150.09,150.06,0.56864628]
[1745953233641,29.89207481,150.08,150.06,0.56864628]
[1745953234042,29.89207481,150.07,150.05,82.5]
[1745953235836,36.55568646,150.07,150.05,82.5]
[1745953236241,29.89207481,150.07,150.05,82.5]
[1745953237523,36.55535276,150.08,150.05,82.5]
[1745953241528,0.03,150.09,150.07,29.89207481]
[1745953242428,0.03,150.09,150.08,0.56864628]
[1745953242628,0.03,150.09,150.08,144.81036995]
[1745953242946,0.03,150.09,150.08,206.91154476]
[1745953243148,0.03,150.15,150.14,45.21829514]
[1745953243448,0.03,150.2,150.19,19.21829514]
[1745953243646,0.03,150.2,150.19,136.13171854]
[1745953243850,0.03,150.2,150.19,137.46289211]
[1745953244040,0.03,150.24,150.22,45.21829514]
[1745953244236,10.31841949,150.29,150.28,0.42648471]
[1745953244437,10.31841949,150.35,150.34,0.14216157]
[1745953244646,10.31841949,150.35,150.34,21.84206968]
[1745953244953,10.31841949,150.35,150.34,0.56864628]
[1745953245134,10.31841949,150.35,150.34,40.49171854]
[1745953245536,0.6936864,150.38,150.36,0.14216157]
[1745953245736,0.6936864,150.38,150.37,53.19318467]
[1745953245944,34.66857593,150.38,150.35,82.44]
[1745953246143,33.97488953,150.37,150.32,121.64]
[1745953246353,7.34355027,150.38,150.33,0.56864628]
[1745953246534,0.6936864,150.38,150.36,52.62453839]
[1745953246734,0.6936864,150.38,150.37,53.19318467]
[1745953246942,34.66857593,150.38,150.33,108.44]
[1745953247152,33.97488953,150.35,150.33,82.44]
[1745953247455,6.65203219,150.33,150.29,10.03586432]
[1745953247755,33.97488953,150.3,150.29,10.03586432]
[1745953248860,33.97488953,150.3,150.23,13.34216157]
[1745953249037,33.97488953,150.25,150.23,0.14216157]
[1745953249354,26.0,150.31,150.25,0.14216157]
[1745953249536,6.65335994,150.3,150.26,33.97488953]
[1745953249741,40.62824947,150.3,150.26,33.97488953]
[1745953250143,33.97488953,150.29,150.25,34.54353581]
[1745953250665,40.62824947,150.3,150.26,33.97488953]
[1745953251161,33.97488953,150.29,150.26,0.14216157]
[1745953251461,19.95284607,150.32,150.28,0.56864628]
[1745953251639,51.59206582,150.3,150.28,0.56864628]
[1745953251839,51.59206582,150.3,150.27,0.56864628]
[1745953253155,51.59206582,150.29,150.27,0.42648471]
[1745953253747,51.59206582,150.28,150.26,0.14216157]
[1745953254056,51.59206582,150.28,150.25,0.14216157]
[1745953254259,51.59206582,150.26,150.24,0.14216157]
[1745953254458,51.59206582,150.25,150.22,0.14216157]
[1745953254647,51.59206582,150.25,150.22,0.56864628]
[1745953254961,51.59206582,150.26,150.22,51.73422739]
[1745953255337,51.59206582,150.26,150.23,0.14216157]
[1745953255743,51.59206582,150.25,150.23,0.28432314]
[1745953256061,107.52385979,150.32,150.23,0.28432314]
[1745953256062,51.59206582,150.26,150.23,0.42648471]
[1745953256567,51.59206582,150.27,150.23,0.42648471]
[1745953257865,58.24677703,150.27,150.23,0.42648471]
[1745953258052,51.59206582,150.27,150.23,0.42648471]
[1745953258769,81.52385979,150.32,150.23,0.42648471]
[1745953259069,103.18413164,150.24,150.16,51.59206582]
[1745953259363,51.59206582,150.17,150.15,0.063]
[1745953259555,51.59206582,150.16,150.15,0.063]
[1745953259752,51.59206582,150.17,150.15,0.063]
[1745953260457,51.59206582,150.16,150.15,0.063]
[1745953260952,51.59206582,150.18,150.15,0.063]
[1745953261267,26.0,150.22,150.17,0.28432314]
[1745953261268,51.59206582,150.2,150.17,0.28432314]
[1745953261475,51.59206582,150.2,150.17,0.42648471]
[1745953261650,51.59206582,150.19,150.17,0.42648471]
[1745953262671,51.59206582,150.18,150.17,0.42648471]
[1745953263468,6.65833488,150.19,150.17,0.42648471]
[1745953263770,51.59206582,150.18,150.15,0.63164628]
[1745953264071,51.59206582,150.16,150.15,0.20516157]
[1745953264294,51.59206582,150.16,150.15,0.063]
[1745953264462,116.48413164,150.16,150.1,82.44]
[1745953264662,51.59206582,150.11,150.04,92.47586432]
[1745953264853,51.59206582,150.07,150.05,0.14216157]
[1745953265050,19.19685375,150.07,150.05,82.58216157]
[1745953265253,51.59206582,150.08,150.05,82.58216157]
[1745953265552,51.59206582,150.08,150.07,0.14216157]
[1745953266257,51.59206582,150.08,150.07,18.79181043]
[1745953266546,51.59206582,150.08,150.07,19.21829514]
[1745953266778,51.59206582,150.08,150.07,18.933972]
[1745953266952,51.59206582,150.08,150.05,82.44]
[1745953267153,6.66278543,150.09,150.05,82.44]
[1745953267154,6.66278543,150.09,150.06,0.14216157]
[1745953267348,51.59206582,150.07,150.06,0.14216157]
[1745953267761,51.59206582,150.07,150.06,0.56864628]
[1745953267962,1.6587,150.14,150.07,19.21829514]
[1745953268161,51.59206582,150.1,150.07,101.65829514]
[1745953268462,51.59206582,150.09,150.07,101.65829514]
[1745953269283,51.59206582,150.11,150.09,18.64964886]
[1745953269674,51.59206582,150.11,150.09,101.08964886]
[1745953270183,51.59206582,150.11,150.09,101.65829514]
[1745953270184,51.59206582,150.1,150.09,101.65829514]
[1745953270685,51.59206582,150.11,150.09,101.65829514]
[1745953271780,51.59206582,150.1,150.09,82.86648471]
[1745953271960,51.59206582,150.1,150.06,127.08964886]
[1745953272166,51.59206582,150.08,150.07,0.14216157]
[1745953272365,51.59206582,150.08,150.07,0.56864628]
[1745953272585,51.59206582,150.08,150.07,0.14216157]
[1745953272875,51.59206582,150.08,150.07,0.56864628]
[1745953273294,51.59206582,150.09,150.07,0.56864628]
[1745953274284,51.59206582,150.08,150.07,0.56864628]
[1745953274582,51.59206582,150.08,150.03,18.79181043]
[1745953274762,51.59206582,150.05,150.03,101.23181043]
[1745953274962,51.59206582,150.05,150.04,0.42648471]
[1745953275289,51.59206582,150.05,150.03,82.58216157]
[1745953275585,51.59206582,150.04,150.03,83.00864628]
[1745953275968,51.59206582,150.04,150.0,26.0]
[1745953275969,51.59206582,150.04,150.0,18.79181043]
[1745953276184,51.59206582,150.02,150.01,0.42648471]
[1745953276480,51.59206582,150.02,150.0,0.14216157]
[1745953276675,16.6595306,150.07,149.99,108.48258385]
[1745953276676,51.59206582,150.01,149.99,82.48258385]
[1745953276876,51.59206582,150.0,149.99,82.48258385]
[1745953277188,14.9045,150.04,150.0,0.14216157]
[1745953277385,51.59206582,150.01,150.0,0.14216157]
[1745953277590,51.59206582,150.01,149.99,82.48258385]
[1745953277889,51.59206582,150.0,149.99,82.48258385]
[1745953279291,21.56974996,150.04,149.99,82.48258385]
[1745953279473,51.59206582,150.0,149.99,82.48258385]
[1745953280802,51.59206582,150.0,149.99,83.05123013]
[1745953281969,28.42641906,150.0,149.99,83.05123013]
[1745953282995,1.6045,150.04,150.0,19.21829514]
[1745953283299,51.59206582,150.04,150.0,179.25036096]
[1745953284187,51.59206582,150.06,150.02,19.21829514]
[1745953284379,51.59206582,150.05,150.02,101.65829514]
[1745953286103,51.59206582,150.06,150.02,153.25036096]
[1745953286306,51.59206582,150.07,150.03,51.59206582]
[1745953286511,51.59206582,150.07,150.03,134.03206582]
[1745953286716,1.6536,150.14,150.05,51.59206582]
[1745953287014,51.59206582,150.1,150.06,70.81036096]
[1745953287199,51.59206582,150.1,150.06,153.25036096]
[1745953287396,51.59206582,150.1,150.06,101.65829514]
[1745953287627,51.59206582,150.07,150.06,83.00864628]
[1745953287789,51.59206582,150.07,150.03,82.44]
[1745953287989,51.59206582,150.04,150.03,82.58216157]
[1745953288191,51.59206582,150.04,150.03,83.00864628]
[1745953288493,51.59206582,150.04,150.01,0.14216157]
[1745953288694,51.59206582,150.02,150.01,0.14216157]
[1745953289403,51.59206582,150.02,150.01,0.56864628]
[1745953289914,51.59206582,150.02,150.01,0.28432314]
[1745953290494,51.59206582,150.02,150.01,0.56864628]
[1745953291514,51.59206582,150.02,149.99,0.04258385]
[1745953291690,51.59206582,150.0,149.99,0.04258385]
[1745953292538,103.18413164,150.0,149.99,0.04258385]
[1745953293898,109.8507983,150.0,149.99,0.04258385]
[1745953294520,51.59206582,150.0,149.99,0.04258385]
[1745953294720,103.18413164,150.0,149.99,0.04258385]
[1745953295016,109.8507983,150.0,149.99,0.04258385]
[1745953296414,103.18413164,150.0,149.99,0.04258385]
[1745953296615,51.59206582,150.0,149.99,0.04258385]
[1745953297002,103.18413164,150.0,149.99,0.04258385]
[1745953297507,109.8507983,150.0,149.99,0.04258385]
[1745953298114,51.59206582,150.0,149.99,0.04258385]
[1745953299525,29.89075777,150.0,149.99,0.04258385]
[1745953300618,13.48,150.04,149.99,0.04258385]
[1745953300826,29.89075777,150.01,149.99,0.04258385]
[1745953301122,29.89075777,150.0,149.99,0.04258385]
[1745953307630,20.14499325,150.04,149.99,0.04258385]
[1745953307805,1.5412,150.05,150.0,48.6825682]
[1745953308128,29.89075777,150.04,150.0,131.1225682]
[1745953308529,0.03,150.06,150.03,48.6825682]
[1745953308704,0.03,150.06,150.05,75.10905291]
[1745953309524,0.03,150.06,150.05,81.77349809]
[1745953310123,0.03,150.06,150.05,86.67871856]
[1745953311534,0.03,150.06,150.05,50.12351561]
[1745953312532,0.03,150.06,150.05,45.21829514]
[1745953312733,51.73849885,150.06,150.0,102.3055]
[1745953313043,51.74696674,150.05,150.01,96.53877717]
[1745953313214,51.74696674,150.05,150.02,0.42648471]
[1745953313718,51.74696674,150.05,150.01,96.53877717]
[1745953313903,51.74696674,150.05,150.01,103.2049299]
[1745953314117,51.74696674,150.06,150.03,0.56864628]
[1745953314326,51.74696674,150.07,150.03,52.31561302]
[1745953314534,51.74696674,150.06,150.03,0.56864628]
[1745953314739,51.74696674,150.06,150.03,0.42648471]
[1745953315042,51.74696674,150.04,150.02,0.14216157]
[1745953315243,51.74696674,150.04,150.02,0.42648471]
[1745953315535,51.74696674,150.04,150.02,0.56864628]
[1745953315712,51.74696674,150.05,150.02,0.56864628]
[1745953316839,51.74696674,150.04,150.02,0.56864628]
[1745953317741,51.74696674,150.03,150.02,0.56864628]
[1745953317930,51.74696674,150.04,150.02,0.56864628]
[1745953318537,6.66369458,150.07,150.02,0.56864628]
[1745953318734,51.74696674,150.05,150.02,0.56864628]
[1745953320343,6.66326064,150.08,150.02,0.56864628]
[1745953320638,51.74696674,150.05,150.02,0.56864628]
[1745953321141,6.66326064,150.08,150.02,0.56864628]
[1745953321336,51.74696674,150.06,150.03,0.56864628]
[1745953321540,51.74696674,150.09,150.06,0.56864628]
[1745953321916,51.74696674,150.09,150.06,7.23251951]
[1745953322528,51.74696674,150.1,150.06,141.41948625]
[1745953322741,51.74696674,150.11,150.08,0.56864628]
[1745953323250,15.138,150.13,150.08,0.56864628]
[1745953323438,51.74696674,150.11,150.08,0.56864628]
[1745953323752,1.538,150.13,150.1,0.42648471]
[1745953323924,51.77696674,150.14,150.1,0.42648471]
[1745953324126,0.03,150.14,150.11,0.14216157]
[1745953324338,0.03,150.14,150.12,0.42648471]
[1745953326532,0.03,150.14,150.12,70.82310031]
[1745953326732,51.77696674,150.14,150.13,0.14216157]
[1745953326925,51.77696674,150.14,150.1,82.44]
[1745953327239,51.74696674,150.11,150.05,96.04]
[1745953327549,0.03,150.14,150.06,0.14216157]
[1745953327550,51.74696674,150.07,150.06,0.14216157]
[1745953328448,51.74696674,150.07,150.06,0.56864628]
[1745953328831,51.74696674,150.07,150.06,0.14216157]
[1745953329237,51.74696674,150.07,150.06,0.28432314]
[1745953329556,51.74696674,150.07,150.06,0.56864628]
[1745953332155,58.41062044,150.07,150.03,82.44]
[1745953332327,51.74696674,150.04,150.03,82.58216157]
[1745953332829,51.74696674,150.05,150.03,82.58216157]
[1745953333336,51.74696674,150.05,150.02,0.14216157]
[1745953333337,51.74696674,150.04,150.0,114.66964886]
[1745953333531,6.6636537,150.07,150.0,114.66964886]
[1745953333532,51.74696674,150.02,150.01,0.14216157]
[1745953333850,6.6636537,150.07,150.01,0.56864628]
[1745953333851,34.14424559,150.03,150.01,0.56864628]
[1745953335256,34.14424559,150.02,150.01,0.56864628]
[1745953335755,34.14424559,150.02,150.01,0.42648471]
[1745953336133,34.14424559,150.02,150.0,96.02]
[1745953336331,34.14424559,150.01,150.0,96.58864628]
[1745953336661,34.14424559,150.01,150.0,82.58216157]
[1745953336953,34.14424559,150.01,150.0,83.00864628]
[1745953337327,34.14424559,150.01,149.99,0.04258385]
[1745953337526,34.14424559,150.0,149.99,0.04258385]
[1745953338366,60.14424559,150.08,149.99,53.40512458]
[1745953338536,34.14424559,150.04,149.99,142.51214912]
[1745953338938,6.663557,150.07,150.02,0.56864628]
[1745953339158,34.14424559,150.04,150.02,0.56864628]
[1745953341171,34.14424559,150.03,150.01,82.44]
[1745953341460,34.14424559,150.04,150.02,0.56864628]
[1745953341673,34.14424559,150.08,150.02,0.56864628]
[1745953341839,34.14424559,150.05,150.02,83.00864628]
[1745953342865,34.14424559,150.05,150.03,18.64964886]
[1745953343072,6.66159912,150.12,150.04,34.71289187]
[1745953343248,1.5691,150.11,150.08,0.56864628]
[1745953343969,34.14424559,150.13,150.08,34.71289187]
[1745953344468,34.14424559,150.12,150.08,34.71289187]
[1745953345258,34.14424559,150.12,150.08,116.58424559]
[1745953345466,34.14424559,150.12,150.09,0.56864628]
[1745953346365,0.03,150.14,150.09,0.56864628]
[1745953346566,34.14424559,150.12,150.09,0.56864628]
[1745953350282,34.14424559,150.11,150.09,0.56864628]
[1745953352688,34.14424559,150.12,150.09,0.56864628]
[1745953355594,34.14424559,150.12,150.09,83.00864628]
[1745953356788,34.14424559,150.11,150.09,83.00864628]
[1745953360891,0.03,150.14,150.09,123.81551955]
[1745953361097,34.14424559,150.13,150.09,123.81551955]
[1745953361291,34.14424559,150.13,150.09,117.15289187]
[1745953361500,34.14424559,150.11,150.09,83.00864628]
[1745953362178,34.14424559,150.1,150.06,82.44]
[1745953362382,34.14424559,150.07,150.06,82.44]
[1745953362595,34.14424559,150.07,150.04,82.58216157]
[1745953362795,23.34160654,150.14,150.04,82.58216157]
[1745953362997,34.14424559,150.05,150.04,82.58216157]
[1745953363905,34.14424559,150.05,150.02,13.44]
[1745953364092,34.14424559,150.03,150.01,82.44]
[1745953364404,34.14424559,150.02,150.01,82.58216157]
[1745953364588,34.14424559,150.03,150.01,101.23181043]
[1745953364791,34.14424559,150.05,150.03,0.14216157]
[1745953365000,34.14424559,150.06,150.03,0.42648471]
[1745953365312,34.14424559,150.05,150.03,0.42648471]
[1745953366105,34.14424559,150.04,149.99,0.04258385]
[1745953366312,34.14424559,150.0,149.99,0.18474542]
[1745953366689,34.14424559,150.0,149.99,0.61123013]
[1745953367611,34.14424559,150.0,149.99,0.46906856]
[1745953368108,34.14424559,150.0,149.99,0.61123013]
[1745953372292,34.14424559,150.0,149.99,0.04258385]
[1745953373413,34.14424559,150.01,149.99,0.61123013]
[1745953374285,34.14424559,150.0,149.99,0.61123013]
[1745953375021,34.14424559,150.01,149.99,0.61123013]
[1745953375318,34.14424559,150.03,149.99,0.61123013]
[1745953375613,34.14424559,150.03,149.99,83.05123013]
[1745953376003,34.14424559,150.02,149.99,83.05123013]
[1745953377500,34.14424559,150.01,149.99,83.05123013]
[1745953377700,34.14424559,150.0,149.99,83.05123013]
[1745953378819,34.14424559,150.0,149.99,82.48258385]
[1745953379015,34.14424559,150.0,149.99,0.04258385]
[1745953379819,34.14424559,150.01,149.99,0.04258385]
[1745953380293,40.8104735,150.01,149.99,0.04258385]
[1745953380693,34.14424559,150.01,149.99,0.04258385]
[1745953381719,34.14424559,150.0,149.99,0.04258385]
[1745953383426,40.81091225,150.0,149.99,0.04258385]
[1745953383807,74.95515784,150.0,149.99,0.04258385]
[1745953384123,34.14424559,150.0,149.99,0.04258385]
[1745953385038,40.81091225,150.0,149.99,0.04258385]
[1745953385533,8.31126013,150.04,149.99,0.04258385]
[1745953385713,34.14424559,150.01,149.99,0.04258385]
[1745953386031,34.14424559,150.02,149.99,0.04258385]
[1745953386326,34.14424559,150.01,149.99,0.04258385]
[1745953386832,34.14424559,150.0,149.99,0.04258385]
[1745953389752,34.14424559,150.03,149.99,0.61123013]
[1745953390031,1.6462,150.04,149.99,117.19547572]
[1745953390032,35.79044559,150.04,149.99,117.19547572]
[1745953390233,35.79044559,150.04,149.99,123.86246363]
[1745953390732,35.79044559,150.04,150.0,34.14424559]
[1745953390733,1.6462,150.04,150.0,34.14424559]
[1745953390949,1.5525,150.08,150.03,34.71289187]
[1745953391317,34.14424559,150.06,150.03,0.56864628]
[1745953391531,34.14424559,150.06,150.03,0.42648471]
[1745953391831,34.14424559,150.05,150.03,0.42648471]
[1745953393324,34.14424559,150.04,150.01,0.56864628]
[1745953394043,34.14424559,150.02,149.99,0.04258385]
[1745953394219,34.14424559,150.0,149.99,0.04258385]
[1745953396619,1.6327,150.01,149.99,0.04258385]
[1745953396813,34.14424559,150.0,149.99,0.04258385]
[1745953397516,34.14424559,150.02,149.99,0.04258385]
[1745953397722,34.14424559,150.03,149.99,34.61331415]
[1745953397930,34.14424559,150.03,150.0,0.14216157]
[1745953398625,34.14424559,150.04,150.0,0.14216157]
[1745953399717,34.14424559,150.04,150.0,34.28640716]
[1745953399939,34.14424559,150.04,150.0,40.95303436]
[1745953400241,34.14424559,150.04,150.01,0.42648471]
[1745953403046,1.5714,150.06,150.02,0.14216157]
[1745953403245,13.38,150.08,150.04,0.14216157]
[1745953403548,34.14424559,150.07,150.04,0.14216157]
[1745953403722,13.38,150.08,150.04,0.14216157]
[1745953403723,34.14424559,150.08,150.04,0.14216157]
[1745953403921,35.65184559,150.1,150.06,0.56864628]
[1745953404227,35.65184559,150.1,150.06,34.71289187]
[1745953404745,35.65184559,150.1,150.06,0.56864628]
[1745953404960,34.14424559,150.09,150.06,0.56864628]
[1745953405653,1.5076,150.1,150.06,0.56864628]
[1745953405654,34.14424559,150.08,150.06,0.56864628]
[1745953406153,34.14424559,150.07,150.06,0.56864628]
[1745953406831,34.14424559,150.08,150.06,0.56864628]
[1745953407835,34.14424559,150.09,150.06,0.56864628]
[1745953409460,34.14424559,150.08,150.06,0.56864628]
[1745953409752,34.14424559,150.07,150.04,82.44]
[1745953409963,34.14424559,150.06,150.04,82.44]
[1745953411158,34.14424559,150.07,150.04,82.44]
[1745953411740,34.14424559,150.06,150.04,82.44]
[1745953412241,34.14424559,150.05,149.99,0.04258385]
[1745953412440,6.66369905,150.07,149.99,0.04258385]
[1745953412441,34.14424559,150.01,149.99,0.04258385]
[1745953412745,34.14424559,150.0,149.99,0.04258385]
[1745953413462,34.14424559,150.01,149.99,0.04258385]
[1745953416267,34.14424559,150.02,149.99,0.04258385]
[1745953417157,34.14424559,150.02,149.99,0.18474542]
[1745953418150,34.14424559,150.01,149.99,0.18474542]
[1745953418359,34.14424559,150.02,149.99,0.18474542]
[1745953419962,34.14424559,150.01,149.99,0.18474542]
[1745953420353,19.5808,150.08,150.0,53.22037916]
[1745953420538,19.5808,150.08,150.02,34.14424559]
[1745953420744,6.663557,150.07,150.02,34.14424559]
[1745953420943,34.14424559,150.05,150.02,0.56864628]
[1745953421165,34.14424559,150.08,150.04,34.14424559]
[1745953421871,34.14424559,150.08,150.05,0.56864628]
[1745953422849,34.14424559,150.07,150.05,0.56864628]
[1745953423073,34.14424559,150.07,150.04,82.44]
[1745953423252,34.14424559,150.08,150.04,82.44]
[1745953423468,8.17001738,150.1,150.05,0.56864628]
[1745953423649,34.14424559,150.08,150.05,0.56864628]
[1745953424384,8.17001738,150.1,150.05,0.56864628]
[1745953424680,34.14424559,150.09,150.05,0.56864628]
[1745953424987,34.14424559,150.09,150.05,83.00864628]
[1745953425163,35.65184559,150.1,150.05,117.15289187]
[1745953425546,34.14424559,150.09,150.05,117.15289187]
[1745953427874,34.14424559,150.09,150.05,83.00864628]
[1745953429476,34.14424559,150.08,150.05,83.00864628]
[1745953430985,34.14424559,150.09,150.05,83.00864628]
[1745953433375,34.14424559,150.09,150.05,117.15289187]
[1745953434261,34.14424559,150.09,150.05,83.00864628]
[1745953435688,34.14424559,150.09,150.05,117.15289187]
[1745953437570,21.32528858,150.08,150.05,83.00864628]
[1745953443589,22.83288858,150.1,150.06,21.32528858]
[1745953444083,21.32528858,150.09,150.05,110.99819182]
[1745953444788,1.5076,150.1,150.06,21.32528858]
[1745953444979,22.83288858,150.1,150.06,21.32528858]
[1745953445881,21.32528858,150.09,150.05,104.33393486]
[1745953446086,21.32528858,150.08,150.05,83.00864628]
[1745953446289,21.32528858,150.09,150.05,104.33393486]
[1745953449386,21.32528858,150.12,150.08,21.32528858]
[1745953449559,21.35528858,150.13,150.09,21.32528858]
[1745953449967,0.03,150.13,150.11,21.32528858]
[1745953450993,0.03,150.13,150.1,27.98749058]
[1745953451189,0.03,150.13,150.1,21.32528858]
[1745953452281,21.35528858,150.13,150.09,21.89393486]
[1745953455276,0.03,150.13,150.1,21.32528858]
[1745953456498,21.35528858,150.13,150.09,104.33393486]
[1745953457896,21.32528858,150.12,150.09,82.44]
[1745953458200,21.32528858,150.11,150.09,82.44]
[1745953458783,21.32528858,150.12,150.09,82.44]
[1745953458984,21.32528858,150.1,150.09,82.44]
[1745953459913,21.32528858,150.1,150.06,21.32528858]
[1745953461314,21.32528858,150.1,150.07,4.92331476]
[1745953461706,27.98751455,150.1,150.07,4.92331476]
[1745953461901,21.32528858,150.09,150.07,4.92331476]
[1745953462396,21.32528858,150.09,150.06,0.56864628]
[1745953464013,21.32528858,150.07,150.03,0.14216157]
[1745953464207,21.32528858,150.05,150.02,95.66]
[1745953464515,21.32528858,150.05,150.03,4.93450236]
[1745953465298,6.66273575,150.09,150.03,4.93450236]
[1745953465299,21.32528858,150.04,150.03,4.93450236]
[1745953465502,21.32528858,150.04,150.02,82.44]
[1745953465813,21.32528858,150.05,150.02,82.44]
[1745953466390,21.32528858,150.05,150.03,4.93360427]
[1745953467595,21.32528858,150.05,150.02,82.44]
[1745953470014,21.32528858,150.05,150.02,103.76528858]
[1745953470312,21.32528858,150.06,150.02,103.76528858]
[1745953471302,21.32528858,150.05,150.02,82.44]
[1745953472295,21.32528858,150.06,150.02,103.76528858]
[1745953472699,21.32528858,150.05,150.02,82.44]
[1745953475420,21.32528858,150.06,150.02,103.76528858]
[1745953476034,1.5016,150.08,150.05,21.32528858]
[1745953476200,22.89888858,150.12,150.07,21.32528858]
[1745953476521,22.89888858,150.12,150.08,21.32528858]
[1745953477592,0.03,150.13,150.09,26.24878796]
[1745953477802,0.03,150.13,150.11,21.32528858]
[1745953478128,0.03,150.13,150.12,21.32528858]
[1745953478411,0.03,150.13,150.12,21.89393486]
[1745953478829,0.03,150.13,150.12,26.81743424]
[1745953480329,0.03,150.13,150.12,4.92349938]
[1745953481922,21.35528858,150.13,150.07,21.32528858]
[1745953482220,21.32528858,150.09,150.06,0.14216157]
[1745953482411,8.18263759,150.12,150.05,21.32528858]
[1745953482412,21.32528858,150.08,150.05,0.14216157]
[1745953482597,21.32528858,150.08,150.06,4.91993711]
[1745953482800,21.32528858,150.07,150.06,4.91993711]
[1745953483727,34.13098805,150.07,150.03,0.56864628]
[1745953483893,34.13098805,150.06,150.03,0.56864628]
[1745953484100,34.13098805,150.05,150.01,116.57098805]
[1745953484307,34.13098805,150.05,150.02,0.14216157]
[1745953484520,40.79537781,150.06,150.02,34.27314962]
[1745953484922,39.22,150.11,150.04,34.13098805]
[1745953484923,6.66346297,150.08,150.04,34.13098805]
[1745953485101,40.79445102,150.08,150.04,34.13098805]
[1745953485925,34.13098805,150.08,150.04,34.13098805]
[1745953486124,34.13098805,150.07,150.04,0.14216157]
[1745953488715,34.13098805,150.06,150.02,34.69963433]
[1745953489235,34.13098805,150.06,150.03,4.92047841]
[1745953489836,34.13098805,150.06,150.04,4.92047841]
[1745953490043,34.13098805,150.07,150.04,4.92047841]
[1745953490735,34.13098805,150.08,150.04,34.13098805]
[1745953492425,40.79412313,150.08,150.04,34.13098805]
[1745953492635,34.13098805,150.07,150.03,34.69963433]
[1745953493831,34.13098805,150.07,150.04,4.91974044]
[1745953495034,34.13098805,150.06,150.03,0.56864628]
[1745953499136,34.13098805,150.06,150.04,4.92185751]
[1745953500454,34.13098805,150.06,150.03,0.56864628]
[1745953501324,34.13098805,150.07,150.03,34.69963433]
[1745953501523,34.13098805,150.04,150.02,82.44]
[1745953502323,6.663557,150.07,150.0,73.35098805]
[1745953502324,23.32244951,150.07,150.03,4.92721751]
[1745953502525,34.13098805,150.04,150.03,4.92721751]
[1745953503428,34.13098805,150.04,150.0,34.13098805]
[1745953503628,21.33927716,150.04,150.0,21.90792344]
[1745953503825,22.89807716,150.05,150.0,21.90792344]
[1745953504030,21.33927716,150.07,150.03,21.33927716]
[1745953504849,1.5588,150.09,150.02,21.33927716]
[1745953505062,1.5588,150.09,150.03,0.56864628]
[1745953505227,1.5588,150.09,150.04,21.33927716]
[1745953505552,21.33927716,150.08,150.04,21.33927716]
[1745953507722,8.28707607,150.13,150.07,21.33927716]
[1745953507926,21.33927716,150.12,150.08,21.33927716]
[1745953508432,1.626,150.13,150.1,21.33927716]
[1745953508642,0.03,150.13,150.11,21.33927716]
[1745953509360,21.36927716,150.13,150.08,109.00864628]
[1745953509523,34.13191385,150.13,150.09,34.10191385]
[1745953510153,0.03,150.13,150.09,34.10191385]
[1745953510355,34.13191385,150.13,150.09,34.10191385]
[1745953510734,34.10191385,150.12,150.08,117.11056013]
[1745953511655,6.69089867,150.13,150.09,34.10191385]
[1745953511656,40.79281252,150.13,150.09,34.10191385]
[1745953513161,34.10191385,150.1,150.08,83.00864628]
[1745953513336,6.69089867,150.13,150.08,117.11056013]
[1745953513541,34.10191385,150.12,150.08,117.11056013]
[1745953513742,34.13191385,150.13,150.09,34.10191385]
[1745953514362,0.03,150.13,150.1,34.67056013]
[1745953514539,0.03,150.13,150.1,34.10191385]
[1745953518439,0.03,150.13,150.11,34.10191385]
[1745953518947,0.03,150.13,150.12,34.10191385]
[1745953520359,0.03,150.13,150.11,34.67056013]
[1745953521545,0.03,150.13,150.11,0.56864628]
[1745953526033,34.10191385,150.12,150.1,82.44]
[1745953526436,34.10191385,150.11,150.1,82.44]
[1745953527162,34.10191385,150.12,150.1,82.44]
[1745953529372,34.10191385,150.11,150.1,82.44]
[1745953529555,21.31741391,150.11,150.1,82.44]
[1745953531663,21.31741391,150.11,150.09,0.28432314]
[1745953532968,21.31741391,150.1,150.08,82.44]
[1745953533261,21.31741391,150.1,150.06,21.60173705]
[1745953533470,21.31741391,150.1,150.07,0.56864628]
[1745953535470,6.66153587,150.12,150.07,21.88606019]
[1745953535667,21.31741391,150.11,150.07,21.88606019]
[1745953536465,21.31741391,150.12,150.08,21.31741391]
[1745953536763,21.31741391,150.12,150.07,0.56864628]
[1745953536764,21.31741391,150.09,150.07,0.56864628]
[1745953537355,21.31741391,150.09,150.06,82.44]
[1745953537559,21.31741391,150.07,150.04,13.22]
[1745953537755,21.31741391,150.05,150.03,0.14216157]
[1745953537959,21.31741391,150.08,150.03,0.56864628]
[1745953537960,21.31741391,150.04,150.03,0.56864628]
[1745953538139,21.31741391,150.04,150.03,5.49081811]
[1745953539464,21.31741391,150.05,150.03,5.49081811]
[1745953539662,14.8586,150.11,150.05,0.56864628]
[1745953539967,21.31741391,150.09,150.05,0.56864628]